bitfinex-derivatives/quotes_BTCF0:USTF0_20251204
["timestamp","ask_amount","ask_price","bid_price","bid_amount"]
[1764875858707,0.72005313,91491.0,91490.0,0.00016398]
[1764875860896,0.0109287,91478.0,91475.0,0.51908]
[1764875861197,0.6948894,91470.0,91453.0,0.3608]
[1764875861400,0.02518347,91470.0,91444.0,0.0109323]
[1764875861597,0.3608,91455.0,91450.0,0.0109318]
[1764875861800,0.00080662,91451.0,91450.0,0.0109318]
[1764875862104,0.00016398,91460.0,91459.0,0.0109307]
[1764875862400,0.02545421,91460.0,91459.0,0.0109307]
[1764875863812,0.0109312,91456.0,91448.0,0.3608]
[1764875864010,0.68068872,91455.0,91454.0,0.0109313]
[1764875864194,0.02517534,91455.0,91454.0,0.0109313]
[1764875864397,0.01120957,91460.0,91459.0,0.0109307]
[1764875864800,0.02460019,91460.0,91459.0,0.6870207]
[1764875864998,0.00027887,91460.0,91459.0,0.6870207]
[1764875866204,0.3608,91483.0,91482.0,0.363548]
[1764875866411,0.38512759,91483.0,91482.0,0.363548]
[1764875867394,0.02432759,91483.0,91482.0,0.363548]
[1764875868304,1.01712,91491.0,91490.0,0.010927]
[1764875868604,0.38513127,91491.0,91490.0,0.687017]
[1764875869407,0.38513127,91491.0,91490.0,0.010927]
[1764875869607,0.38513127,91491.0,91490.0,0.687017]
[1764875869803,0.00016398,91492.0,91491.0,0.67609]
[1764875870005,0.00016398,91492.0,91491.0,0.67851002]
[1764875870508,0.3317406,91492.0,91491.0,0.00242002]
[1764875870803,0.3317406,91492.0,91482.0,0.0109279]
[1764875870804,0.38610762,91492.0,91482.0,0.0109279]
[1764875871004,0.00080662,91483.0,91482.0,0.3635479]
[1764875871200,0.37189078,91492.0,91477.0,0.3717285]
[1764875871405,0.37189078,91492.0,91491.0,0.35262]
[1764875871712,0.36096398,91492.0,91491.0,0.67609]
[1764875871899,0.00016398,91492.0,91491.0,0.67609]
[1764875874401,0.0009706,91492.0,91491.0,0.67609]
[1764875874798,0.65632,91487.0,91486.0,0.0109275]
[1764875874995,0.0109285,91481.0,91480.0,0.010928]
[1764875875197,0.3416978,91484.0,91483.0,0.0109276]
[1764875875407,0.0109275,91487.0,91486.0,0.0109274]
[1764875875609,0.3608,91488.0,91487.0,0.67609]
[1764875875910,0.00016398,91492.0,91491.0,0.67609]
[1764875876109,0.00016398,91492.0,91491.0,0.68943692]
[1764875877502,0.0009706,91492.0,91491.0,0.67851002]
[1764875878110,0.00016398,91492.0,91491.0,0.67851002]
[1764875878309,0.0009706,91492.0,91491.0,0.67851002]
[1764875878512,0.3317406,91492.0,91491.0,0.00242002]
[1764875878705,0.65632,91486.0,91485.0,0.3608]
[1764875878896,0.65712662,91486.0,91485.0,0.3608]
[1764875879511,0.0109271,91490.0,91485.0,0.3608]
[1764875879712,0.00080662,91486.0,91485.0,0.7243476]
[1764875880011,0.0109273,91488.0,91485.0,0.7243476]
[1764875880211,0.6672473,91488.0,91487.0,0.00242002]
[1764875880509,0.6672485,91478.0,91471.0,0.0109293]
[1764875880712,0.6672485,91478.0,91455.0,0.3608]
[1764875880713,0.6672489,91474.0,91455.0,0.3608]
[1764875880913,0.6672489,91474.0,91442.0,0.3608]
[1764875880914,0.6672526,91443.0,91442.0,0.3608]
[1764875881108,0.65632,91416.0,91411.0,9.188e-05]
[1764875881409,0.0109334,91437.0,91411.0,9.188e-05]
[1764875881410,0.00080662,91412.0,91411.0,9.188e-05]
[1764875881610,0.65712662,91412.0,91411.0,9.188e-05]
[1764875881803,0.00080662,91412.0,91411.0,0.0025119]
[1764875882011,0.00080662,91412.0,91411.0,9.188e-05]
[1764875882203,0.65712662,91412.0,91411.0,9.188e-05]
[1764875883102,0.6672574,91403.0,91402.0,0.00016409]
[1764875883302,1.02886402,91403.0,91402.0,0.00016409]
[1764875883914,0.33077,91385.0,91379.0,0.0109403]
[1764875884211,0.00080662,91382.0,91375.0,0.0109407]
[1764875884507,0.00080662,91382.0,91381.0,0.00242002]
[1764875884710,0.00080662,91382.0,91381.0,0.66816012]
[1764875884909,0.00010662,91384.0,91381.0,0.66816012]
[1764875885208,0.00091324,91384.0,91383.0,0.00242002]
[1764875885409,0.66491324,91384.0,91376.0,0.0109407]
[1764875885710,0.00010662,91384.0,91383.0,0.65722002]
[1764875885912,0.00091324,91384.0,91383.0,0.65722002]
[1764875886606,0.00010662,91384.0,91383.0,0.65722002]
[1764875886909,0.00010662,91384.0,91372.0,0.36096409]
[1764875886910,0.00091324,91384.0,91372.0,0.00016409]
[1764875887112,0.00091324,91384.0,91372.0,0.00258411]
[1764875887113,0.3608,91378.0,91372.0,0.00258411]
[1764875887305,0.3608,91378.0,91377.0,0.65722002]
[1764875887800,0.00010662,91384.0,91383.0,0.6548]
[1764875888002,0.00010662,91384.0,91383.0,0.65722002]
[1764875888200,0.00091324,91384.0,91383.0,0.65722002]
[1764875888413,0.37265294,91384.0,91383.0,0.65722002]
[1764875888608,0.0109407,91376.0,91372.0,0.00016409]
[1764875888812,0.3717407,91376.0,91375.0,0.00242002]
[1764875889713,0.3608,91376.0,91375.0,0.00242002]
[1764875890216,0.36090662,91384.0,91383.0,0.6657398]
[1764875890405,0.0109398,91383.0,91375.0,0.0109407]
[1764875890608,0.3493298,91383.0,91382.0,0.00242002]
[1764875890801,0.33839,91383.0,91372.0,0.00016409]
[1764875891111,0.36090662,91384.0,91372.0,0.00016409]
[1764875891112,0.36090662,91384.0,91382.0,0.0109399]
[1764875891417,0.69929662,91384.0,91383.0,0.00242002]
[1764875892108,0.36090662,91384.0,91383.0,0.00242002]
[1764875892309,0.36090662,91384.0,91383.0,0.65722002]
[1764875893523,0.00016409,91391.0,91390.0,0.6548]
[1764875893817,0.3608,91402.0,91401.0,0.6657377]
[1764875894607,0.3608,91406.0,91405.0,0.6657372]
[1764875894908,0.00016409,91411.0,91410.0,0.6657366]
[1764875895110,0.3608,91421.0,91420.0,0.6657354]
[1764875895313,0.3608,91421.0,91408.0,0.19874]
[1764875895510,0.3717367,91409.0,91407.0,0.5184]
[1764875895711,0.3608,91421.0,91420.0,0.6548]
[1764875896520,0.00016409,91430.0,91429.0,0.6657343]
[1764875896720,0.00097071,91430.0,91429.0,0.6548]
[1764875896906,0.00016409,91430.0,91429.0,0.6548]
[1764875897109,0.00097071,91430.0,91429.0,0.6548]
[1764875897307,0.00016409,91430.0,91429.0,0.6548]
[1764875898112,0.00097071,91430.0,91420.0,0.5]
[1764875898308,0.00097071,91430.0,91429.0,0.00242002]
[1764875898309,0.67590501,91430.0,91429.0,0.00242002]
[1764875898514,0.0109346,91427.0,91420.0,0.5295753]
[1764875898714,0.0109346,91427.0,91426.0,0.00242002]
[1764875898913,0.6749346,91427.0,91426.0,0.00242002]
[1764875899324,0.010935,91424.0,91419.0,0.0109354]
[1764875899517,0.00080662,91420.0,91419.0,0.0109354]
[1764875899718,0.00080662,91420.0,91417.0,0.5295756]
[1764875899913,0.00080662,91420.0,91419.0,0.00242002]
[1764875900417,0.33839,91412.0,91409.0,0.0109366]
[1764875900617,0.00080662,91412.0,91411.0,0.00258411]
[1764875902819,0.3608,91413.0,91411.0,0.00258411]
[1764875902820,0.3608,91413.0,91412.0,0.3480264]
[1764875903014,0.3608,91413.0,91412.0,0.35044642]
[1764875903216,0.3608,91413.0,91412.0,0.66815642]
[1764875903617,0.3608,91413.0,91412.0,0.65722002]
[1764875903917,0.3608,91413.0,91411.0,0.00016409]
[1764875903918,0.6749364,91412.0,91411.0,0.00016409]
[1764875904120,0.67574302,91412.0,91411.0,0.00016409]
[1764875905121,0.67574302,91412.0,91411.0,0.00258411]
[1764875905429,0.01174302,91412.0,91411.0,0.65738411]
[1764875905626,0.01174302,91412.0,91411.0,0.65496409]
[1764875905823,0.3608,91413.0,91412.0,0.6657364]
[1764875906024,0.3608,91413.0,91412.0,0.66815642]
[1764875906218,0.3717362,91413.0,91412.0,0.66815642]
[1764875906414,0.3608,91413.0,91412.0,0.66815642]
[1764875907129,0.3608,91421.0,91420.0,0.6657354]
[1764875907327,0.3608,91421.0,91420.0,0.66815542]
[1764875907631,0.3608,91432.0,91429.0,0.6657343]
[1764875907827,0.3608,91432.0,91429.0,0.66815432]
[1764875908029,0.0109328,91442.0,91429.0,0.66815432]
[1764875908234,0.3608,91443.0,91442.0,0.6548]
[1764875908419,0.3608,91460.0,91445.0,0.6657324]
[1764875908620,0.3608,91460.0,91458.0,0.0109308]
[1764875908835,0.3608,91460.0,91459.0,0.65722002]
[1764875910119,0.69919,91460.0,91459.0,0.00242002]
[1764875910322,1.0248,91460.0,91459.0,0.00242002]
[1764875910521,0.69919,91460.0,91459.0,0.00242002]
[1764875910827,0.3608,91460.0,91459.0,0.33951002]
[1764875911428,0.7101206,91460.0,91456.0,0.010931]
[1764875911630,1.0357306,91460.0,91459.0,0.00242002]
[1764875911927,0.0109311,91457.0,91453.0,0.51824]
[1764875912125,0.3608,91460.0,91453.0,0.51824]
[1764875912126,0.01173792,91454.0,91453.0,0.51824]
[1764875912427,0.00016409,91469.0,91450.0,0.65496409]
[1764875912634,0.05715224,91495.0,91488.0,0.19874]
[1764875912830,0.07620299,91506.0,91488.0,0.19874]
[1764875912831,0.33839,91520.0,91514.0,0.010924]
[1764875913028,0.664,91516.0,91515.0,2.01888]
[1764875913222,0.664,91516.0,91515.0,2.029804]
[1764875913424,0.72115225,91516.0,91515.0,2.751404]
[1764875913624,0.39554225,91516.0,91515.0,1.251404]
[1764875913829,0.00010411,91525.0,91524.0,0.709483]
[1764875914030,0.00010411,91525.0,91524.0,1.07270302]
[1764875914418,0.64515,91545.0,91544.0,0.0109206]
[1764875914617,0.64515,91545.0,91544.0,0.7325206]
[1764875915428,0.64515,91549.0,91548.0,0.01092]
[1764875916425,0.31901,91549.0,91548.0,0.01092]
[1764875916622,0.28171631,91600.0,91548.0,0.01092]
[1764875916623,0.01020228,91604.0,91563.0,0.3608]
[1764875916924,0.19538,91620.0,91542.0,0.29263711]
[1764875916925,0.64515,91578.0,91577.0,0.0109166]
[1764875917132,0.64515,91578.0,91577.0,0.7325166]
[1764875917826,0.64515,91578.0,91577.0,0.7216]
[1764875918224,0.64515,91558.0,91557.0,0.3608]
[1764875920729,0.28171631,91580.0,91557.0,0.3608]
[1764875920730,0.31901,91591.0,91589.0,0.0109152]
[1764875920918,0.64515,91591.0,91590.0,0.3608]
[1764875921531,0.656065,91591.0,91590.0,0.3608]
[1764875921719,1.056065,91591.0,91590.0,0.3608]
[1764875922119,1.056065,91591.0,91586.0,0.18106445]
[1764875922325,0.5846,91582.0,91581.0,0.00016381]
[1764875922532,0.0109181,91566.0,91561.0,0.3608]
[1764875922729,0.0109174,91571.0,91565.0,0.00242002]
[1764875922936,0.5846,91562.0,91561.0,0.3608]
[1764875923320,0.0109191,91557.0,91550.0,0.00499999]
[1764875923525,0.0109191,91557.0,91556.0,0.00242002]
[1764875923727,0.010919,91558.0,91556.0,0.00242002]
[1764875923930,0.2923,91558.0,91557.0,0.00242002]
[1764875924432,0.5846,91554.0,91553.0,0.3608]
[1764875925430,0.0109185,91562.0,91553.0,0.66766]
[1764875925637,0.0109185,91562.0,91544.0,0.00016381]
[1764875925638,0.0109195,91553.0,91545.0,0.0109205]
[1764875925829,0.3032195,91553.0,91552.0,0.00242002]
[1764875926028,0.01092,91549.0,91544.0,0.37188431]
[1764875926236,0.0109189,91559.0,91551.0,0.0109197]
[1764875926434,0.3608,91553.0,91546.0,0.0109203]
[1764875926738,0.0109193,91555.0,91550.0,0.00499999]
[1764875926931,0.5846,91555.0,91554.0,0.00242002]
[1764875927431,0.00016381,91563.0,91550.0,0.00499999]
[1764875927633,0.5846,91551.0,91544.0,0.36096381]
[1764875928131,0.5846,91549.0,91548.0,0.0109201]
[1764875928634,0.0109199,91551.0,91548.0,0.0109201]
[1764875928827,0.0109199,91551.0,91550.0,0.00242002]
[1764875929228,0.0109193,91555.0,91550.0,0.00742001]
[1764875929431,0.00016381,91563.0,91544.0,0.36096381]
[1764875929432,0.0109205,91545.0,91544.0,0.36096381]
[1764875929624,0.0109205,91545.0,91544.0,0.00016381]
[1764875929924,0.3608,91553.0,91544.0,0.00016381]
[1764875929925,0.0109203,91547.0,91545.0,0.0109205]
[1764875930126,0.0109203,91547.0,91544.0,0.34475383]
[1764875930127,0.0109198,91551.0,91550.0,0.34217]
[1764875930333,0.3608,91562.0,91550.0,0.34217]
[1764875930529,0.0109195,91554.0,91553.0,0.0109195]
[1764875930731,0.010919,91558.0,91553.0,0.0109195]
[1764875930930,0.010919,91558.0,91557.0,0.00242002]
[1764875931339,0.0109195,91554.0,91552.0,0.3608]
[1764875931541,0.5846,91551.0,91550.0,0.00499999]
[1764875932039,0.5846,91551.0,91544.0,0.00016381]
[1764875932332,0.01092,91549.0,91544.0,0.00016381]
[1764875932532,0.01092,91549.0,91548.0,0.37414012]
[1764875932723,0.01092,91549.0,91548.0,0.00242002]
[1764875934329,0.0109205,91545.0,91544.0,0.00016381]
[1764875934535,0.0109205,91545.0,91544.0,0.00258383]
[1764875934733,0.0109205,91545.0,91544.0,0.00016381]
[1764875934929,0.0109205,91545.0,91544.0,0.00258383]
[1764875935233,0.5955227,91526.0,91514.0,0.3608]
[1764875935624,0.5955227,91526.0,91520.0,0.00499999]
[1764875935825,0.595524,91515.0,91514.0,0.3608]
[1764875936234,0.59560919,91515.0,91514.0,0.3608]
[1764875937836,0.59560919,91515.0,91514.0,1.02846]
[1764875937837,8.519e-05,91515.0,91514.0,1.02846]
[1764875938733,8.519e-05,91515.0,91514.0,0.70297]
[1764875939834,0.58468519,91515.0,91514.0,0.3608]
[1764875940241,0.5955251,91506.0,91505.0,0.00016391]
[1764875940435,0.9563251,91506.0,91505.0,0.00016391]
[1764875940635,0.9563251,91506.0,91491.0,0.16765052]
[1764875940636,0.3032268,91492.0,91491.0,0.16765052]
[1764875941038,0.3032268,91492.0,91460.0,0.23502641]
[1764875941039,0.0109288,91475.0,91460.0,0.23502641]
[1764875941239,0.010928,91483.0,91462.0,0.34225038]
[1764875941240,0.0109303,91463.0,91462.0,0.34225038]
[1764875941445,0.0109313,91455.0,91449.0,0.04018779]
[1764875941741,0.2239587,91472.0,91430.0,0.07819204]
[1764875941742,0.0109316,91452.0,91448.0,0.0109319]
[1764875941936,0.3608,91453.0,91448.0,0.0109319]
[1764875942135,0.000164,91461.0,91460.0,0.66766]
[1764875942338,0.000164,91461.0,91460.0,0.6785906]
[1764875942542,0.000164,91461.0,91443.0,0.206014]
[1764875942543,0.0109313,91455.0,91448.0,0.010932]
[1764875942846,0.3610838,91461.0,91451.0,0.0109316]
[1764875943041,0.3610838,91461.0,91453.0,0.0109315]
[1764875943240,0.0109306,91460.0,91455.0,0.0109312]
[1764875943545,0.3610838,91461.0,91455.0,0.0109312]
[1764875943933,0.3610838,91461.0,91458.0,0.0109308]
[1764875944133,0.010931,91457.0,91450.0,0.0109318]
[1764875944339,0.0109309,91458.0,91456.0,0.00242002]
[1764875944540,0.0109309,91458.0,91456.0,0.0109311]
[1764875944740,0.0109306,91460.0,91456.0,0.0109311]
[1764875945045,0.010931,91457.0,91451.0,0.0109316]
[1764875945247,0.0109319,91450.0,91447.0,0.0109321]
[1764875945549,0.3608,91453.0,91450.0,0.0109318]
[1764875945747,0.3608,91453.0,91452.0,0.00242002]
[1764875946338,0.3608,91453.0,91450.0,0.0109318]
[1764875946631,0.3608,91453.0,91450.0,0.0109317]
[1764875946632,0.2923,91451.0,91450.0,0.0109317]
[1764875946838,0.3608,91453.0,91450.0,0.0109317]
[1764875947035,0.3608,91453.0,91452.0,0.67688002]
[1764875947442,0.0002838,91461.0,91452.0,1.03768002]
[1764875947638,0.0002838,91461.0,91460.0,0.00242002]
[1764875947840,0.0002838,91461.0,91446.0,0.00027339]
[1764875947841,0.010932,91449.0,91446.0,0.01120559]
[1764875948040,0.5846,91447.0,91446.0,0.00027339]
[1764875948244,0.58468421,91447.0,91446.0,0.00027339]
[1764875948439,0.5846,91429.0,91412.0,0.39982786]
[1764875948634,0.6531,91420.0,91410.0,0.00012941]
[1764875948841,0.6531,91420.0,91415.0,0.010936]
[1764875949036,0.0109355,91419.0,91415.0,0.010936]
[1764875949233,0.0109355,91419.0,91410.0,0.01106591]
[1764875949439,0.0109355,91419.0,91413.0,0.0109362]
[1764875949641,0.3608,91420.0,91418.0,0.00242002]
[1764875949944,0.0109355,91419.0,91411.0,0.0109365]
[1764875950147,0.010936,91415.0,91410.0,0.00012941]
[1764875950346,0.0109356,91419.0,91414.0,0.00242002]
[1764875950647,0.3608,91420.0,91418.0,0.0109356]
[1764875950839,0.2923,91419.0,91418.0,0.0109356]
[1764875951039,0.000164,91424.0,91423.0,0.685395]
[1764875951238,0.010935,91423.0,91419.0,0.0109355]
[1764875951451,0.2923,91420.0,91415.0,0.0109359]
[1764875951743,0.3032355,91420.0,91415.0,0.0109359]
[1764875951937,0.3032355,91420.0,91419.0,0.00242002]
[1764875952237,0.0109355,91419.0,91416.0,0.0109358]
[1764875952436,0.000164,91424.0,91421.0,0.00242002]
[1764875952646,0.000164,91424.0,91423.0,0.00242002]
[1764875953339,0.000164,91424.0,91423.0,0.67688002]
[1764875955446,0.0109333,91438.0,91434.0,0.0109336]
[1764875955646,0.5955333,91438.0,91437.0,0.00242002]
[1764875955852,0.5955333,91438.0,91370.0,0.00599999]
[1764875955853,0.5955365,91411.0,91392.0,0.20729]
[1764875956149,0.5955365,91411.0,91406.0,1.139e-05]
[1764875956150,0.595537,91407.0,91406.0,1.139e-05]
[1764875956448,0.5846,91367.0,91349.0,0.0109439]
[1764875956750,0.5846,91367.0,91357.0,0.00016409]
[1764875956941,0.94549296,91367.0,91357.0,0.00016409]
[1764875957248,0.5955428,91358.0,91357.0,0.00016409]
[1764875957435,0.5955428,91358.0,91330.0,0.0109461]
[1764875957436,0.0109447,91343.0,91330.0,0.0109461]
[1764875957639,0.36090752,91342.0,91330.0,0.2239587]
[1764875958044,0.36090752,91342.0,91331.0,0.010946]
[1764875958246,0.36090752,91342.0,91327.0,0.3608]
[1764875958452,0.36090752,91342.0,91331.0,0.67446]
[1764875958859,0.37185232,91342.0,91331.0,0.67446]
[1764875959148,0.36090752,91342.0,91341.0,0.34719]
[1764875959351,0.00010752,91342.0,91341.0,0.67446]
[1764875960549,0.00016419,91344.0,91343.0,0.67446]
[1764875960858,0.00016419,91344.0,91343.0,1.03768002]
[1764875961350,0.00016419,91344.0,91343.0,0.00242002]
[1764875961556,0.0109453,91338.0,91321.0,0.3608]
[1764875961742,0.0109464,91328.0,91326.0,0.00269377]
[1764875961946,7.188e-05,91327.0,91326.0,0.00027375]
[1764875962142,0.58467188,91327.0,91326.0,0.00027375]
[1764875962445,0.58467188,91327.0,91315.0,1e-07]
[1764875962446,0.5955479,91316.0,91315.0,1e-07]
[1764875962757,0.51828,91318.0,91286.0,0.01122527]
[1764875963051,0.0109494,91303.0,91294.0,0.67446]
[1764875963349,0.010948,91315.0,91305.0,0.67446]
[1764875963546,0.010948,91315.0,91301.0,0.3608]
[1764875963547,0.3608,91309.0,91301.0,0.00016429]
[1764875963754,8.107e-05,91314.0,91308.0,0.00242002]
[1764875964056,8.107e-05,91314.0,91301.0,0.00016429]
[1764875964057,0.0109489,91308.0,91301.0,0.00016429]
[1764875964250,0.0109487,91310.0,91308.0,0.67446]
[1764875964455,0.0109486,91310.0,91309.0,0.00242002]
[1764875964757,0.0109486,91310.0,91301.0,0.00016429]
[1764875964758,0.0109491,91306.0,91301.0,0.00016429]
[1764875964956,0.0109494,91303.0,91301.0,0.00258431]
[1764875965251,0.5955494,91303.0,91301.0,0.00016429]
[1764875965646,0.2923,91302.0,91301.0,0.00016429]
[1764875965848,0.3608,91304.0,91301.0,0.00016429]
[1764875965849,0.3608,91304.0,91303.0,0.67446]
[1764875966046,0.3608,91304.0,91303.0,0.67688002]
[1764875966255,0.01102917,91314.0,91304.0,0.0109493]
[1764875966451,0.01102917,91314.0,91313.0,0.00242002]
[1764875967151,8.107e-05,91314.0,91313.0,0.00242002]
[1764875967356,8.107e-05,91314.0,91313.0,0.67688002]
[1764875967555,8.107e-05,91314.0,91313.0,0.00242002]
[1764875968153,8.107e-05,91314.0,91313.0,0.67688002]
[1764875969155,0.3608,91346.0,91345.0,0.67446]
[1764875969354,0.0109439,91349.0,91345.0,0.34719]
[1764875969556,0.3608,91346.0,91332.0,0.20729]
[1764875969862,0.0109456,91336.0,91322.0,0.8794]
[1764875970158,8.855e-05,91335.0,91322.0,0.8794]
[1764875970360,8.855e-05,91335.0,91334.0,0.67446]
[1764875970747,0.0109457,91334.0,91332.0,0.20729]
[1764875970952,0.0109457,91334.0,91333.0,0.00242002]
[1764875971845,0.3032457,91334.0,91333.0,0.00242002]
[1764875972050,0.010947,91324.0,91320.0,0.00016418]
[1764875972250,0.010946,91332.0,91323.0,0.00242002]
[1764875972554,0.36088855,91335.0,91320.0,0.00016418]
[1764875972555,0.36088855,91335.0,91334.0,0.67446]
[1764875973159,8.855e-05,91335.0,91334.0,0.67446]
[1764875974950,0.3608,91348.0,91347.0,0.67899]
[1764875975151,0.3608,91348.0,91347.0,0.6899341]
[1764875975451,0.0109448,91342.0,91338.0,0.2239587]
[1764875975653,0.0109444,91346.0,91342.0,0.0109447]
[1764875975853,0.3608,91348.0,91345.0,0.01336432]
[1764875976053,0.3608,91348.0,91338.0,0.2239587]
[1764875976259,0.664134,91348.0,91347.0,0.00242002]
[1764875977063,0.664134,91348.0,91335.0,0.00016418]
[1764875977064,0.0109454,91337.0,91335.0,0.00016418]
[1764875977258,0.0109454,91337.0,91336.0,0.00242002]
[1764875977756,0.010944,91349.0,91348.0,0.67899]
[1764875977957,0.00016418,91353.0,91338.0,0.0109451]
[1764875978161,0.0109455,91336.0,91335.0,0.67915418]
[1764875978357,0.3608,91340.0,91339.0,0.67899]
[1764875978558,0.3608,91340.0,91339.0,0.68141002]
[1764875978765,0.0109455,91336.0,91335.0,0.00016418]
[1764875978960,0.0109455,91336.0,91335.0,0.0025842]
[1764875979161,0.3717451,91340.0,91335.0,0.6925198]
[1764875979363,0.3608,91340.0,91339.0,0.68141002]
[1764875979763,0.3608,91340.0,91339.0,0.32852]
[1764875980066,0.3033355,91336.0,91335.0,0.00016418]
[1764875980267,0.0109455,91336.0,91335.0,0.0025842]
[1764875980463,0.0109455,91336.0,91335.0,0.00016418]
[1764875980763,0.5957255,91336.0,91335.0,0.00016418]
[1764875980962,0.3608,91340.0,91335.0,0.6815742]
[1764875981152,0.0109449,91341.0,91340.0,0.67899]
[1764875981868,0.0109443,91346.0,91345.0,0.67899]
[1764875982978,0.0109442,91347.0,91346.0,0.70713]
[1764875983276,0.0109442,91347.0,91336.0,0.2239587]
[1764875983277,0.0109455,91336.0,91335.0,0.71823978]
[1764875983475,0.0109455,91336.0,91335.0,0.74794107]
[1764875983682,0.0109451,91340.0,91339.0,0.70713]
[1764875983883,0.0109451,91340.0,91339.0,0.73683129]
[1764875985381,0.0109451,91340.0,91339.0,0.02970129]
[1764875985576,0.3033351,91340.0,91339.0,0.02970129]
[1764875985780,0.5957251,91340.0,91339.0,0.02970129]
[1764875986476,0.5957251,91340.0,91339.0,0.02941519]
[1764875987279,0.5957251,91340.0,91322.0,0.03902786]
[1764875987280,0.58478,91324.0,91322.0,0.03902786]
[1764875987482,0.58478,91324.0,91304.0,0.3608]
[1764875987483,0.0109487,91309.0,91308.0,0.7180788]
[1764875987779,0.0109487,91309.0,91308.0,0.70713]
[1764875988379,0.0109487,91309.0,91308.0,0.7573283]
[1764875988583,0.0109481,91314.0,91312.0,0.20045]
[1764875988779,0.0109481,91314.0,91313.0,0.00242002]
[1764875988978,0.0109487,91309.0,91308.0,0.35201]
[1764875989283,0.0109487,91309.0,91308.0,0.70713]
[1764875991174,0.3608,91315.0,91314.0,0.35201]
[1764875991571,0.01111187,91318.0,91317.0,0.70713]
[1764875991776,0.01111187,91318.0,91317.0,0.70955002]
[1764875992577,0.0109482,91313.0,91312.0,0.23968878]
[1764875992780,0.0109482,91313.0,91293.0,0.3608]
[1764875992781,0.58478,91311.0,91310.0,0.03923878]
[1764875992985,0.0109497,91301.0,91299.0,0.03940305]
[1764875993178,0.58478,91294.0,91293.0,0.03907449]
[1764875993483,0.58478,91294.0,91262.0,0.3608]
[1764875993484,0.7216,91300.0,91283.0,0.3608]
[1764875993785,0.7216,91300.0,91295.0,0.70713]
[1764875993786,0.0109503,91296.0,91295.0,0.70713]
[1764875994481,0.7325498,91300.0,91294.0,0.0109504]
[1764875994678,0.7325498,91300.0,91286.0,0.00043814]
[1764875994679,0.7325498,91300.0,91299.0,0.70955002]
[1764875995079,0.0109507,91292.0,91291.0,0.70713]
[1764875995383,0.7216,91300.0,91286.0,0.00043814]
[1764875995581,0.7216,91300.0,91286.0,0.35486816]
[1764875995582,0.3608,91300.0,91286.0,0.35486816]
[1764875995773,0.0109513,91287.0,91286.0,0.35486816]
[1764875995973,0.0109513,91287.0,91286.0,0.70998816]
[1764875996179,0.0109507,91293.0,91290.0,0.70713]
[1764875996373,0.5957313,91287.0,91286.0,0.00043814]
[1764875996595,0.0109513,91287.0,91286.0,0.70998816]
[1764875996781,0.0109513,91287.0,91286.0,0.35486816]
[1764875997176,0.5957313,91287.0,91286.0,0.00043814]
[1764875997375,0.0109513,91287.0,91286.0,0.70998816]
[1764875997683,0.5957313,91287.0,91286.0,0.00043814]
[1764875997893,0.5957313,91287.0,91270.0,0.05854179]
[1764875997894,0.5847,91271.0,91270.0,0.05854179]
[1764875998092,0.010953,91273.0,91253.0,0.09679463]
[1764875998093,0.29235,91263.0,91253.0,0.3608]
[1764875998274,0.5847,91257.0,91253.0,0.3608]
[1764875998474,0.0109549,91258.0,91256.0,0.0025623]
[1764875998675,0.5847,91257.0,91256.0,0.00014228]
[1764875998874,0.0109549,91258.0,91256.0,0.00014228]
[1764875999082,0.0109549,91258.0,91257.0,0.00242002]
[1764875999285,0.3033049,91257.0,91256.0,0.00014228]
[1764875999484,0.00016436,91266.0,91256.0,0.0025623]
[1764875999688,0.5847,91257.0,91256.0,0.00014228]
[1764875999984,0.00016436,91266.0,91256.0,0.0025623]
[1764875999985,0.0109549,91258.0,91256.0,0.0025623]
[1764876000187,0.0109549,91258.0,91256.0,0.00014228]
[1764876000391,0.5847,91257.0,91256.0,0.00014228]
[1764876000980,0.00016436,91266.0,91265.0,0.70713]
[1764876001179,0.00499999,91310.0,91265.0,0.70713]
[1764876001180,0.3608,91302.0,91291.0,0.70713]
[1764876001480,0.0109514,91287.0,91282.0,0.3717519]
[1764876001687,0.0109513,91287.0,91286.0,0.00242002]
[1764876001879,0.3608,91302.0,91286.0,0.00242002]
[1764876001880,0.3608,91302.0,91290.0,0.55246]
[1764876002080,0.3608,91302.0,91290.0,0.56125]
[1764876002386,0.3717496,91302.0,91301.0,0.70713]
[1764876002585,0.3608,91302.0,91301.0,0.70713]
[1764876002786,0.00016436,91305.0,91298.0,0.0109499]
[1764876002989,0.01111356,91305.0,91304.0,0.00242002]
[1764876003179,0.0109501,91298.0,91296.0,0.3608]
[1764876003386,0.0109501,91298.0,91297.0,0.00242002]
[1764876003588,0.0109496,91302.0,91297.0,0.35443002]
[1764876003778,0.00016436,91305.0,91301.0,0.70955002]
[1764876003983,0.00016436,91305.0,91304.0,0.70049002]
[1764876004180,0.00016436,91305.0,91304.0,0.00242002]
[1764876004485,0.00016436,91305.0,91290.0,0.20045]
[1764876004486,0.0109509,91291.0,91290.0,0.35216]
[1764876004889,0.00016436,91305.0,91282.0,0.3608]
[1764876005086,0.0109505,91295.0,91294.0,0.35216]
[1764876005391,0.3608,91298.0,91297.0,0.69807]
[1764876005590,0.00016436,91305.0,91304.0,0.69807]
[1764876005890,0.00016436,91305.0,91296.0,0.19783]
[1764876006087,0.3608,91299.0,91298.0,0.69807]
[1764876006285,0.00016436,91305.0,91298.0,0.69807]
[1764876006483,0.00016436,91305.0,91296.0,0.19783]
[1764876006484,0.00016436,91305.0,91304.0,0.70049002]
[1764876006688,0.00016436,91305.0,91304.0,1.06129002]
[1764876006883,0.00016436,91305.0,91304.0,0.70049002]
[1764876007289,0.3608,91317.0,91304.0,0.70049002]
[1764876007290,0.3608,91317.0,91316.0,0.69807]
[1764876007499,0.0109484,91312.0,91304.0,0.02931078]
[1764876007793,0.0109501,91298.0,91293.0,0.0109505]
[1764876007990,0.0109501,91298.0,91297.0,0.00242002]
[1764876008490,0.3608,91305.0,91289.0,0.02931078]
[1764876008692,0.3608,91305.0,91288.0,0.00016426]
[1764876008693,0.0109509,91291.0,91288.0,0.00016426]
[1764876008891,0.0109509,91291.0,91288.0,0.00258428]
[1764876009094,0.0109509,91291.0,91290.0,0.00242002]
[1764876009281,0.0109509,91291.0,91288.0,0.00016426]
[1764876009482,0.0109509,91291.0,91290.0,0.00242002]
[1764876009702,0.0109504,91296.0,91292.0,0.69807]
[1764876009888,0.0109504,91296.0,91295.0,0.00242002]
[1764876010090,0.3717498,91300.0,91299.0,0.35216]
[1764876010397,0.0109495,91303.0,91299.0,0.35458002]
[1764876010598,0.0109495,91303.0,91302.0,0.00242002]
[1764876010893,0.0109504,91295.0,91294.0,0.69807]
[1764876011591,0.0109509,91291.0,91288.0,0.00016426]